Workbook

Sheet Cover page
E11: نموذج طلب الترخيص للبنوك التجارية
E12: بممارسة أنشطة التمويل العقاري والإيجار التمويلي
C21: اسم البنك
C28: رقم مقدم الطلب لدى مؤسسة النقد العربي السعودي (يعبأ من قبل الموظف المختص في المؤسسة بعد استلام الطلب)

Sheet Application checklist
B7: نموذج طلب الترخيص للبنوك التجارية بممارسة أنشطة التمويل العقاري والإيجار التمويلي
B8: تعليمات
B9: 1. يقدم نموذج طلب الترخيص من البنك.
B10: 2. يجب تسليم النماذج والمستندات الموضحة في قائمة المتابعة أدناه ورقياً مع قرص مرن (CD) أو وحدة تخزين (USB) تحتوي نسخاً إلكترونية مطابقة للمستندات والنماذج المسلمة ورقياً وفق ما هو موضح في قائمة المتابعة.
B12: 3. لا يجوز تعديل نموذج طلب الترخيص المقرر من المؤسسة بأي شكل من الأشكال.
B13: 4. في حال عدم كفاية المساحة المخصصة للإجابة على أحد الأسئلة، فينبغي إرفاق الإجابة في ورقة خارجية مع تحديد رقم السؤال ونصه.
B14: 5. يقصد بالألفاظ والعبارات الواردة في هذا النموذج المعاني المبينة في المادة (1) من نظام مراقبة شركات التمويل والمادة (1) من اللائحة التنفيذية لنظام مراقبة شركات التمويل مالم يقتض السياق خلاف ذلك. ويقصد بعبارة (البنك ) أو (مقدم طلب الترخيص) البنك المتقدم بطلب الحصول على ترخيص بممارسة نشاط التمويل العقاري أو نشاط الإيجار التمويلي أو كلاهما.
B16: 6. يجب على مقدم طلب الترخيص التأكد من صحة ودقة وشمولية واكتمال المعلومات المقدمة في طلب الترخيص وخلوه من أي معلومات زائفة أو غير صحيحة أو مضللة أو غير دقيقة أو غير مكتملة، حيث أن تزويد المؤسسة بمعلومات زائفة أو إغفال الإفصاح عن معلومات جوهرية كان يتعين الإفصاح عنها لأغراض الترخيص يعد مخالفة لأحكام نظام مراقبة شركات التمويل وقد يؤدي إلى رفض طلب الترخيص أو إلغاءه بموجب أحكام المادة السابعة من نظام مراقبة شركات التمويل.
B19: قائمة المتابعة
B20: توضح القائمة الآتية النماذج والمستندات التي يجب أن يشتمل عليها طلب الترخيص:
B23: رقم المرفق | C23: المرفق | E23: التوضيح
A24: FALSE | B24: 1 | C24: نموذج طلب الترخيص | E24: نموذج طلب الترخيص بممارسة أنشطة التمويل العقاري والإيجار التمويلي المقرر من المؤسسة بعد إكماله وفقا للأقسام الموضحة في النموذج (ورقياً وإلكترونياً).
E25: معلومات عامة
E26: خطة تسوية الأوضاع
E27: معلومات عن خطة العمل
E28: الاقرار والتعهد
E29: بيان المرفقات
A30: FALSE | B30: =B24+1 -> 2 | C30: الهيكل التنظيمي | E30: وصف الهيكل التنظيمي للوحدات التنظيمية ذات العلاقة بأنشطة التمويل العقاري والإيجار التمويلي والوظائف المرتبطة بها وارتباطاتها التنظيمية والمهام الرئيسة لكل منها.
A31: FALSE | B31: 3 | C31: دراسة الجدوى الاقتصادية | E31: دراسة الجدوى الاقتصادية، وفق التفاصيل المحددة في نموذج طلب الترخيص. ■ تحليل لقطاع التمويل يغطي على الأقل الآتي: - حجم السوق. - هيكل السوق. - العرض والطلب والفجوة السوقية (في الوقت الحالي). - العرض والطلب والفجوة السوقية (في المستقبل). ■ تحليل البيئة التنافسية وأهم المنافسين في السوق بما في ذلك الآتي: - الميزة التنافسية. - الحصة السوقية. - المنتجات المتاحة. - الانتشار الجغرافي. ■ تحليل لعملاء أهم المنافسين في السوق بما في ذلك الآتي: - شرائح العملاء المستهدفة. - تفضيلات العملاء. ■ التحليل المالي لأنشطة التمويل على مستوى السوق، ويغطي على الأقل الآتي: - الإيرادات المتوقعة لكل نشاط. - الأرباح المتوقعة لكل نشاط. ■ نتيجة الدراسة، وتشمل بحد أدنى الآتي: - الأساس المنطقي لاتخاذ قرار دخول السوق. - الحصة السوقية الحالية والمستقبلية من الفجوة السوقية. - الفرص والتحديات الرئيسية للقطاع. - شرائح السوقية المستهدفة.
A33: FALSE | B33: 4 | C33: خطة العمل | E33: خطة العمل، وفق التفاصيل المحددة في نموذج طلب الترخيص. (‌أ) الأنشطة التمويلية المطلوب الترخيص بممارستها، والمنتجات، وخطة التسويق. (‌ب) سياسات وإجراءات منح الائتمان للأنشطة التمويلية المطلوب الترخيص بممارستها. (‌ج) تقدير الإيرادات السنوية والمصروفات، والهوامش المالية ومعدلات النمو المستهدفة، للأنشطة المطلوب الترخيص بممارستها. (‌د) خطة وبرامج مراقبة وإدارة المخاطر وتسوية الأوضاع للأنشطة المطلوب الترخيص بممارستها. (‌هـ) خطة التوظيف والتدريب للأنشطة المطلوب الترخيص بممارستها، متضمنة البرامج ذات العلاقة لتدريب الموظفين وتأهيلهم. (و) المخاطر المحتملة لممارسة الأنشطة المطلوب الترخيص بممارستها وآثارها على عمليات البنك والوضع المالي له وكيفية التعامل مع تلك المخاطر.
A34: FALSE | B34: =B33+1 -> 5 | C34: الاتفاقيات والعقود مع الغير | E34: نسخ من الاتفاقيات والعقود مع الغير فيما يخص الأنشطة المطلوب الترخيص بممارستها ولا سيما الاتفاقيات والعقود مع الأطراف ذات العلاقة ومقدمي الخدمات الخارجيين، بالإضافة إلى نسخ من مشروعات الاتفاقيات والعقود المقترحة.
A35: FALSE

Sheet 1. General details
C7: معلومات عامة
A10: 1
B11: =A10+0.1 -> 1.1 | C11: النشاط أو الأنشطة المطلوب الترخيص بممارستها:
A12: TRUE | E12: التمويل العقاري
A13: TRUE | E13: الايجار التمويلي
C15: ملحوظة: تمويل العقار بصيغة الإيجار التمويلي يتطلب الحصول على ترخيص بممارسة التمويل العقاري.
A66: =A10+1 -> 2 | C66: بيانات الإتصال
C67: بيانات الإتصال للشخص المفوض بتلقي الاستفسارات وتزويد المؤسسة بأي توضيحات أو معلومات أو بيانات أو
C68: مستندات متعلقة بطلب الترخيص والتواصل مع المؤسسة في شأن طلب الترخيص بشكل عام (يجب أن يكون من منسوبي البنك المتقدم بطلب الترخيص).
B71: =A66+0.1 -> 2.1 | C71: الاسم الأول
B73: =B71+0.1 -> 2.2 | C73: اسم الأب
B75: =B73+0.1 -> 2.3 | C75: اسم العائلة
B77: =B75+0.1 -> 2.4 | C77: المسمى الوظيفي
B79: =B77+0.1 -> 2.5 | C79: عنوان العمل
B83: =B79+0.1 -> 2.6 | C83: عنوان البريد
B87: =B83+0.1 -> 2.7 | C87: رقم التلفون
B89: =B87+0.1 -> 2.8 | C89: رقم الجوال
B91: =B89+0.1 -> 2.9 | C91: رقم الفاكس
B93: ="2.10" -> 2.10 | C93: البريد الإلكتروني
A124: =A66+1 -> 3 | C124: معلومات البنك
B126: 3.1 | C126: متى بدأ البنك ممارسة نشاط التمويل العقاري؟
C127: التاريخ (يوم/شهر/سنة)
B133: 3.2 | C133: هل يمتلك البنك بشكل جزئي أو كامل في أي شركات تمارس أنشطة تمويلية ؟
E135: لا
E136: نعم، اذكر التفاصيل في الجدول الآتي:
C138: اسم الشركة | D138: رقم السجل التجاري | F138: نسبة ملكية البنك في الشركة | G138: الأنشطة التمويلية التي تمارسها الشركة
B152: Question | C152: Data
B153: 1.1a | C153: FALSE
B154: 1.1b | C154: FALSE
B155: 2 | C155: 2

Sheet 2. Compliance plan
C7: خطة تسوية الأوضاع
C12: يحتوي هذا القسم على أسئلة متعلقة ببعض متطلبات أنظمة التمويل ذات العلاقة ومدى توافق أوضاع البنك مع تلك المتطلبات فيما يخص الأنشطة التمويلية المطلوب الترخيص بممارستها بموجب طلب الترخيص، وذلك بغرض تقييم وضع البنك وخطته لتسوية أوضاعه وفق أحكام أنظمة التمويل ولوائحها التنفيذية، علماً أن موافقة المؤسسة على الترخيص للبنك أو منحه الترخيص بممارسة الأنشطة التمويلية المطلوب الترخيص بممارستها لا يعني إعفاء البنك من الالتزام بأي من المتطلبات ذات العلاقة المنصوص عليها في أنظمة التمويل ولوائحها التنفيذية.
C15: يُقصد بعبارة "الأنشطة التمويلية المحددة" النشاط أو الأنشطة التمويلية المطلوب الترخيص بممارستها بموجب طلب الترخيص والمحددة في الفقرة (1.1) من قسم "المعلومات العامة" من نموذج طلب الترخيص.
A22: 1
B23: 1.1 | C23: هل يحفظ البنك جميع وثائق عمل الأنشطة التمويلية المحددة وسجلاته وملفاته بطريقة منظمة وشفافة وآمنة، ويتحقق من اكتمال الملفات وتحديثها بصفة دورية، وذلك لمدة عشر سنوات على الأقل من تاريخ انتهاء العلاقة مع العميل؟
E26: نعم
E27: لا، اذكر تفاصيل وكيفية عمل البنك على تحقيق الالتزام بأحكام المادة 34 من اللائحة التنفيذية لنظام مراقبة شركات التمويل
E28: مثال: وضح الخطوات التي سوف يتخذها البنك لتحقيق الالتزام والجدول الزمني للقيام بتلك الخطوات.
C32: الالتزام الشرعي
B33: 1.2 | C33: ما خطة البنك للالتزام بممارسة الأنشطة التمويلية المحددة بما لا يتعارض مع أحكام الشريعة الاسلامية وفق أحكام المادة الثالثة من نظام التمويل العقاري والمادة الثالثة من نظام مراقبة شركات التمويل؟
E36: مثال: وضح الخطوات التي سوف يتخذها البنك لتحقيق الالتزام والجدول الزمني للقيام بتلك الخطوات.
B41: 1.3 | C41: هل لدى البنك لجنة شرعية وفق أحكام المادة الثالثة من نظام التمويل العقاري والمادة الثالثة من نظام مراقبة شركات التمويل؟ اذكر أسماء أعضاء اللجنة الشرعية في حال وجودها أو التاريخ المتوقع لتشكيل اللجنة الشرعية؟
E42: اذكر أسماء أعضاء اللجنة الشرعية في حال وجودها أو التاريخ المتوقع لتشكيل اللجنه الشرعية.
B47: 1.4 | C47: ما التاريخ المتوقع لبدء اللجنة الشرعية مراجعة المنتجات التمويلية المحددة؟
B54: 1.5 | C54: ما التاريخ المتوقع الذي تكون فيه الأنشطة التمويلية المحددة متوافقة بشكل كامل مع أحكام المادة الثالثة من نظام التمويل العقاري والمادة الثالثة من نظام مراقبة شركات التمويل؟
C60: إدارة المخاطر
B61: 1.6 | C61: هل البنك ملتزم بمتطلبات إدارة المخاطر المنصوص عليها في المواد (38) و(39) و(40) من اللائحة التنفيذية لنظام مراقبة شركات التمويل في الأنشطة التمويلية المحددة؟
E64: نعم
E65: لا، اذكر تفاصيل وكيفية عمل البنك على تحقيق الالتزام بأحكام المواد المشار إليها في السؤال
E66: مثال: وضح الخطوات التي سوف يتخذها البنك لتحقيق الالتزام والجدول الزمني للقيام بتلك الخطوات.
C70: إدارة أو وظيفة الالتزام
B71: 1.7 | C71: هل لدى البنك وظيفة تتولى مهام الالتزام للأنشطة التمويلية المحددة؟
E72: نعم
E73: لا، اذكر تفاصيل وكيفية عمل البنك على تحقيق الالتزام بأحكام المادة (42) من اللائحة التنفيذية لنظام مراقبة شركات التمويل
E74: مثال: وضح الخطوات التي سوف يتخذها البنك لتحقيق الالتزام والجدول الزمني للقيام بتلك الخطوات.
C78: سياسات التمويل
B79: 1.8 | C79: هل لدى البنك سياسات تمويل مكتوبة للأنشطة التمويلية المحددة تتضمن قواعد منح التمويل وإجراءاته؟
E84: نعم
E85: لا، اذكر تفاصيل وكيفية عمل البنك على تحقيق الالتزام بأحكام المادة (52) من اللائحة التنفيذية لنظام مراقبة شركات التمويل
E86: مثال: وضح الخطوات التي سوف يتخذها البنك لتحقيق الالتزام والجدول الزمني للقيام بتلك الخطوات.
B91: 1.9 | C91: هل يقوم البنك بمنح التمويل لمستفيد اجنبي غير مقيم بالمملكة للأنشطة التمويلية المحددة؟
E93: لا
E94: نعم، ارفق تفاصيل التمويل الممنوح لمستفيد أجنبي غير مقيم في المملكة للأنشطة التمويلية المحددة وموافقة المؤسسة
B100: 1.1 | C100: هل يقوم البنك بمنح التمويل بعملة غير الريال السعودي للأنشطة التمويلية المحددة؟
E102: لا
E103: نعم، ارفق تفاصيل التمويل الممنوح بعملة غير الريال السعودي للأنشطة التمويلية المحددة
B109: 1.11 | C109: هل يقيم البنك المخاطر المتعلقة بكل تعرض وتصنيفها قبل إصدار قرار التمويل ومراجعة التصنيف كل سنة للأنشطة التمويلية المحددة؟
E111: نعم
E112: لا، اذكر تفاصيل وكيفية عمل البنك على تحقيق الالتزام بأحكام المادة (59) من اللائحة التنفيذية لنظام مراقبة شركات التمويل
E113: مثال: وضح الخطوات التي سوف يتخذها البنك لتحقيق الالتزام والجدول الزمني للقيام بتلك الخطوات.
B118: 1.12 | C118: هل الضمانات التي يحصل عليها البنك مقابل تقديم التمويل متوافقة مع سياسات وإجراءات إدارة المخاطر التي يعتمدها مجلس الإدارة للأنشطة التمويلية المحددة؟
E120: نعم
E121: لا، اذكر تفاصيل وكيفية عمل البنك على تحقيق الالتزام بأحكام المادة (60) من اللائحة التنفيذية لنظام مراقبة شركات التمويل
E122: مثال: وضح الخطوات التي سوف يتخذها البنك لتحقيق الالتزام والجدول الزمني للقيام بتلك الخطوات.
C127: حماية حقوق المستهلك في خدمات التمويل
B128: 1.13 | C128: هل تتضمن عقود التمويل التي يقدمها البنك ضمن الأنشطة التمويلية المحددة جميع البيانات والمعلومات المنصوص عليها في المادة (78) من اللائحة التنفيذية لنظام مراقبة شركات التمويل ؟
E131: نعم
E132: لا، اذكر تفاصيل وكيفية عمل البنك على تحقيق الالتزام بأحكام المادة المشار إليها في السؤال
E133: مثال: وضح الخطوات التي سوف يتخذها البنك لتحقيق الالتزام والجدول الزمني للقيام بتلك الخطوات.
B138: 1.14 | C138: هل الرسوم والعمولات وتكاليف الخدمات الادارية التي يحصل عليها البنك من المستفيد لا تزيد عن (1%) من مبلغ التمويل أو (5,000) خمسة الاف ريال أيهما أقل، للأنشطة التمويلية المحددة؟
E141: نعم
E142: لا، اذكر تفاصيل وكيفية عمل البنك على تحقيق الالتزام بأحكام المادة (83) من اللائحة التنفيذية لنظام مراقبة شركات التمويل
E143: مثال: وضح الخطوات التي سوف يتخذها البنك لتحقيق الالتزام والجدول الزمني للقيام بتلك الخطوات.
C148: النشاطات المساندة لنشاط التمويل
B149: 1.15 | C149: هل يتعامل البنك مع جهات تقدم نشاط مساند لأي من أنشطة التمويل، مثل تسويق المنتجات التمويلية أو تحصيل الديون للأنشطة التمويلية المحددة؟
E151: لا
E152: نعم، اذكر أسماء الجهات وطبيعة النشاط الذي تقدمه للبنك
C159: أجب على الاسئلة المتعلقة بالنشاط المطلوب الترخيص بممارسته:
E160: التمويل العقاري، انتقل إلى الفقر 2.1
E161: الإيجار التمويلي، انتقل إلى الفقرة 3.1
B167: 2.1 | C167: هل العقد المبرم بين البنك والمستفيد يحتوي جميع البيانات والمعلومات المنصوص عليها في المادة (10) من اللائحة التنفيذية لنظام التمويل العقاري ؟
E170: نعم
E171: لا، اذكر تفاصيل وكيفية عمل البنك على تحقيق الالتزام بأحكام المادة المشار إليها في السؤال
E172: مثال: وضح الخطوات التي سوف يتخذها البنك لتحقيق الالتزام والجدول الزمني للقيام بتلك الخطوات.
B177: 2.2 | C177: هل سبق للبنك منح تمويل عقاري يتجاوز مبلغ التمويل فيه نسبة (70%) من قيمة المسكن محل العقد؟
E179: لا
E180: نعم، أرفق بيانات توضح عدد وإجمالي مبالغ عقود التمويل العقاري التي تزيد نسبة التمويل فيها عن (70%) من قيمة المسكن محل العقد ونسبتها من محفظة التمويل العقاري ككل، مع تصنيفها وفقاً لنسبة التمويل من قيمة المسكن: (70-80%) و(81-90%) و(91-100%)، بالإضافة إلى توضيح كيفية عمل البنك على تحقيق الالتزام بأحكام المادة (12) من اللائحة التنفيذية لنظام التمويل العقاري
E181: مثال: وضح الخطوات التي سوف يتخذها البنك لتحقيق الالتزام والجدول الزمني للقيام بتلك الخطوات.
B186: 2.3 | C186: هل لدى البنك منتجات تمويل مدعومة دعماً مالياً أو ائتمانياً من قبل أي جهة؟
E187: لا
E188: نعم، وضح كيفية الدعم وآليته وشروطه واسم الجهة الداعمة
A206: 3
B208: 3.1 | C208: هل عقود الإيجار التمويلي متوافقة مع أحكام نظام الإيجار التمويلي ولائحته التنفيذية؟
E210: نعم
E211: لا، اذكر تفاصيل كيفية قيام الشركة بتحقيق الالتزام بأحكام نظام الإيجار التمويلي ولائحته التنفيذية
E212: مثال: وضح الخطوات التي سوف يتخذها البنك لتحقيق الالتزام والجدول الزمني للقيام بتلك الخطوات.

Sheet 2. Compliance data (hidden)
A1: Question | B1: Data
A2: ='2. Compliance plan'!B23 -> 1.1 | B2: 2
A3: 1.6 | B3: 1
A4: =A3+0.1 -> 1.7 | B4: 1
A5: 1.1 | B5: 1
A6: 1.11 | B6: 1
A7: 1.12 | B7: 2
A8: 1.13 | B8: 2
A9: 1.14 | B9: 1
A10: 1.15 | B10: 2
A11: 1.16 | B11: 1
A12: 1.17 | B12: 1
A13: 2.2 | B13: 1
A14: 2.3 | B14: 2
A15: 2.4 | B15: 1
A16: 3.1 | B16: 1

Sheet 3.0 Business Details Overview
B9: معلومات عن خطة العمل
B12: يجب أن يحتوي هذا القسم على معلومات شاملة حول إستراتيجية مقدم طلب الترخيص والحوكمة والسوق المستهدفة والبيانات المالية والخطة التنفيذية، وذلك للأنشطة المطلوب الترخيص بممارستها.
B18: القسم | C18: الرقم | D18: المحتويات
B19: الإدارة | C19: 3.1 | D19: الإدارة
B20: الاستراتيجية | C20: 3.2 | D20: السوق المستهدف
C21: 3.3 | D21: القيمة المضافة
B22: البيانات المالية | C22: 3.4 | D22: معلومات محفظة التمويل
C23: 3.5 | D23: أداء محفظة التمويل
C24: 3.6 | D24: الهوامش المالية والفرضيات
B25: الخطة التنفيذية | C25: 3.7 | D25: خطة التشغيل
C26: 3.8 | D26: خطة الموارد البشرية

Sheet 3.1 Management Team
B7: الإدارة العليا
A9: عدد المدراء | B9: =COUNT(C:C) -> 1
C12: يجب أن يحتوي هذا القسم على بيانات أعضاء الإدارة العليا الذين لهم علاقة بالانشطة التمويلية في البنك، بما في ذلك المدير أو المدراء المسئولين عن الأنشطة التمويلية المطلوب الترخيص بممارستها ونوابهم وكذلك المسئولين عن وظائف إدارة المخاطر والمراجعة والالتزام للأنشطة التمويلية المطلوب الترخيص بممارستها.
C13: الإدارة العليا | D13: التفاصيل | M13: Senior Management | N13: Details
C14: =B35 -> 1 | M14: 1
C15: الاسم الاول | M15: First name
C17: اسم الاب | M17: Middle name
C19: اسم العائلة | M19: Last name
C21: الجنسية | M21: Nationality
C23: رقم بطاقة الأحوال أو الجواز | M23: National ID or Passport Number
C25: رقم الإقامة (لغير السعودي)
C27: المنصب | M27: Position Title
C29: وصف موجز للمنصب | M29: Short description of role
C31: ماهي التبعية الإدارية لصاحب هذا المنصب، الرجاء ذكر التفاصيل
C33: هل هناك عدم ممانعة من مؤسسة النقد العربي السعودي على تعيين صاحب هذا المنصب؟ اذكر التفاصيل
B35: =B11+1 -> 1

Sheet 3.2 Target Market
C9: السوق المستهدفة
C11: يجب أن يحتوي هذا القسم على وصف للسوق المستهدفة للنشاط التمويلي المطلوب الترخيص بممارسته ( بما في ذلك وصف الشريحة المستهدفة من العملاء بناءً على مستوى الدخل والتوزيع الجغرافي والسلوكيات الاستهلاكية و أي تصنيف آخر يستخدمه البنك) مع وصف للتوقعات المستقبلية لحجم السوق والأرباح والخسائر المتوقع بالإضافة إلى وصف للبنية التنافسية والتحديات المستقبلية والسبل المتاحة للتعامل مع تلك التحديات.
C12: السوق المستهدفة | E12: Target Market
C13: نشاط التمويل | D13: القطاعات المستهدفه للنشاط
A15: TRUE | C15: التمويل العقاري | X15: Real Estate Finance
A17: TRUE | C17: الإيجار التمويلي | X17: Financial lease
C23: يجب أن يحتوي هذا الجدول عن معلومات تفصيلية عن قطاع التمويل العقاري في حال طلب البنك الترخيص بممارسة نشاط التمويل العقاري.
C24: التمويل العقاري
C25: اقتصاديات السوق | D25: البيانات التاريخية | J25: البيانات المستقبلية
D26: 2008 | E26: 2009 | F26: 2010 | G26: 2011 | H26: 2012 | I26: المعدل المركب للنمو السنوي % | J26: 2013 | K26: 2014 | L26: 2015 | M26: 2016 | N26: 2017 | O26: المعدل المركب للنمو السنوي %
C27: إجمالي حجم التمويل (مليون ريال سعودي)
C28: متوسط هامش الربح الإجمالي (%)
C29: نسبة التمويلات المتعثرة (لأكثر من 90 يوم) من إجمالي التمويل (%)
C33: هيكل السوق
D34: اسم المنافس | J34: نسبة الحصة السوقية التقديرية ( % )
C35: المنافس الرئيسي 1
C37: المنافس الرئيسي 2
C39: المنافس الرئيسي 3
C41: أهم عناصر محفزات الطلب في هذا النشاط (مثل التعداد السكاني والارتفاع في مستويات الدخل...الخ).
C44: التحديات والعوائق الرئيسة في السوق
D45: وصف التحديات | J45: السبل المتاحة للتعامل مع التحديات
C47: التحدي 1
C49: التحدي 2
C51: التحدي 3
C53: التحدي 4
C55: التحدي 5
C57: التحدي 6
A60: =A8+1 -> 1
C67: يجب أن يحتوي هذا الجدول عن معلومات تفصيلية عن قطاع الإيجار التمويلي في حال طلب البنك الترخيص بممارسة نشاط الإيجار التمويلي.
C68: الإيجار التمويلي
C69: اقتصاديات السوق | D69: البيانات التاريخية | J69: البيانات المستقبلية
D70: 2008 | E70: 2009 | F70: 2010 | G70: 2011 | H70: 2012 | I70: المعدل المركب للنمو السنوي % | J70: 2013 | K70: 2014 | L70: 2015 | M70: 2016 | N70: 2017 | O70: المعدل المركب للنمو السنوي %
C71: إجمالي حجم التمويل (مليون ريال سعودي)
C72: الإيجار التمويلي للسيارات
C73: الإيجار التمويلي للمعدات
C74: الإيجار التمويلي للأصول الأخرى (باستثناء الإيجار التمويلي للعقار والذي يعتبر ضمن نشاط التمويل العقاري)
C75: متوسط هامش الربح الإجمالي % ( السيارات)
C76: متوسط هامش الربح الإجمالي % ( المعدات)
C77: نسبة التمويلات المتعثرة (لأكثر من 90 يوم) من إجمالي التمويل (%)
C80: هيكل السوق
D81: اسم المنافس | J81: نسبة الحصة السوقية التقديرية ( % )
C82: المنافس الرئيسي 1
C84: المنافس الرئيسي 2
C86: المنافس الرئيسي 3
C88: أهم عناصر محفزات الطلب في هذا النشاط (مثل التعداد السكاني والارتفاع في مستويات الدخل...الخ).
C91: التحديات والعوائق الرئيسة في السوق
D92: وصف التحديات | J92: السبل المتاحة للتعامل مع التحديات
C94: التحدي 1
C96: التحدي 2
C98: التحدي 3
C100: التحدي 4
C102: التحدي 5
C104: التحدي 6

Sheet 3.3 Value Proposition
C6: القيمة المضافة
C8: يجب أن يحتوي هذا القسم على معلومات عن القيمة المضافة لخدمات البنك والتي ستميزه عن المنافسين الاخرين في السوق ووصف تفصيلي لقنوات التسويق والمنتجات المستخدمة من قبل البنك مع مستندات تفصيلية لجميع المنتجات الذي يقدمها البنك للأنشطة التمويلية المطلوب الترخيص بممارستها.
C9: القيمة المضافة
C10: المحددات التي تميز البنك | D10: التفاصيل
A12: FALSE | C12: تنوع المنتجات
A14: FALSE | C14: كفاءة وفعالية الإجراءات
... 7 more rows

Sheet 3.4 Portfolio Information
C8: معلومات محفظة التمويل
C9: يجب إكمال الجدول الآتي بما في ذلك بيانات السنوات الخمس السابقة وتوقعات البيانات للسنوات الخمس القادمة للأنشطة التمويلية المطلوب الترخيص بممارستها.
D11: البيانات التاريخية | J11: البيانات المستقبلية
C12: ريال سعودي | D12: 2008 | E12: 2009 | F12: 2010 | G12: 2011 | H12: 2012 | I12: المعدل المركب للنمو السنوي % | J12: 2013 | K12: 2014 | L12: 2015 | M12: 2016 | N12: 2017 | O12: المعدل المركب للنمو السنوي %
C13: قيمة التمويل حسب النشاط التمويلي
C15: نشاط التمويل العقاري
C16: نشاط الإيجار التمويلي
C17: الإيجار التمويلي للسيارات
C18: الإيجار التمويلي للمعدات
C19: الإيجار التمويلي للأصول الأخرى (باستثناء الإيجار التمويلي للعقار والذي يعتبر ضمن نشاط التمويل العقاري)
C21: الأصول المرجحة بأوزان المخاطر حسب المنتجات
C23: التمويل العقاري
C24: الإيجار التمويلي
C25: الإيجار التمويلي للسيارات
C26: الإيجار التمويلي للمعدات
C27: الإيجار التمويلي للأصول الأخرى (باستثناء الإيجار التمويلي للعقار والذي يعتبر ضمن نشاط التمويل العقاري)
C30: التمويل العقاري فقط | D30: البيانات التاريخية | J30: البيانات المستقبلية
C31: ريال سعودي | D31: 2008 | E31: 2009 | F31: 2010 | G31: 2011 | H31: 2012 | I31: المعدل المركب للنمو السنوي % | J31: 2013 | K31: 2014 | L31: 2015 | M31: 2016 | N31: 2017 | O31: المعدل المركب للنمو السنوي %
C32: قيمة التمويل حسب التوزيع الجغرافي
C34: حائل
C35: الرياض
C36: القصيم
C37: مكة المكرمة
C38: المدينة المنورة
C39: تبوك
C40: الباحة
C41: المنطقة الشرقية
C42: الحدود الشمالية
C43: الجوف
C44: جازان
C45: عسير
C46: نجران
C47: إجمالي التمويل
C51: الإيجار التمويلي فقط | D51: البيانات التاريخية | J51: البيانات المستقبلية
C52: ريال سعودي | D52: 2008 | E52: 2009 | F52: 2010 | G52: 2011 | H52: 2012 | I52: المعدل المركب للنمو السنوي % | J52: 2013 | K52: 2014 | L52: 2015 | M52: 2016 | N52: 2017 | O52: المعدل المركب للنمو السنوي %
C53: قيمة التمويل حسب التوزيع الجغرافي
C55: حائل
C56: الرياض
C57: القصيم
C58: مكة المكرمة
C59: المدينة المنورة
C60: تبوك
C61: الباحة
C62: المنطقة الشرقية
C63: الحدود الشمالية
C64: الجوف
C65: جازان
C66: عسير
C67: نجران
C68: إجمالي التمويل
C72: التمويل العقاري فقط | D72: البيانات التاريخية | J72: البيانات المستقبلية
C73: ريال سعودي | D73: 2008 | E73: 2009 | F73: 2010 | G73: 2011 | H73: 2012 | I73: المعدل المركب للنمو السنوي % | J73: 2013 | K73: 2014 | L73: 2015 | M73: 2016 | N73: 2017 | O73: المعدل المركب للنمو السنوي %
C74: قيمة التمويل حسب مستوى الدخل للعملاء
C76: 5000 ريال سعودي أو أقل في الشهر
C77: من 5001 إلى 10000 ريال سعودي في الشهر
C78: من 10001 إلى 15000 ريال سعودي في الشهر
C79: من 15001 إلى 20000 ريال سعودي في الشهر
C80: أكثر من 20000 ريال سعودي في الشهر
C81: إجمالي التمويل
C84: الإيجار التمويلي قطاع الأفراد فقط | D84: البيانات التاريخية | J84: البيانات المستقبلية
C85: ريال سعودي | D85: 2008 | E85: 2009 | F85: 2010 | G85: 2011 | H85: 2012 | I85: المعدل المركب للنمو السنوي % | J85: 2013 | K85: 2014 | L85: 2015 | M85: 2016 | N85: 2017 | O85: المعدل المركب للنمو السنوي %
C86: قيمة التمويل حسب مستوى الدخل للعملاء
C88: 5000 ريال سعودي أو أقل في الشهر
C89: من 5001 إلى 10000 ريال سعودي في الشهر
C90: من 10001 إلى 15000 ريال سعودي في الشهر
C91: من 15001 إلى 20000 ريال سعودي في الشهر
C92: أكثر من 20000 ريال سعودي في الشهر
C93: إجمالي التمويل
C98: الإيجار التمويلي لقطاع الشركات فقط | D98: البيانات التاريخية | J98: البيانات المستقبلية
C99: ريال سعودي | D99: 2008 | E99: 2009 | F99: 2010 | G99: 2011 | H99: 2012 | I99: المعدل المركب للنمو السنوي % | J99: 2013 | K99: 2014 | L99: 2015 | M99: 2016 | N99: 2017 | O99: المعدل المركب للنمو السنوي %
C100: قيمة التمويل حسب مستوى الايرادات للشركات
C102: اقل من 500,000 ريال سعودي سنوياً
C103: من 500,001 إلى 1,000,000 ريال سعودي سنوياً
C104: من 1,000,001 إلى 2,000,000 ريال سعودي سنوياً
C105: من 2,000,001 إلى 5,000,000 ريال سعودي سنوياً
C106: أكثر من 5,000,000 ريال سعودي سنوياً
C107: إجمالي التمويل

Sheet 3.5 Performance of portfolio
C8: أداء محفظة التمويل
C9: يجب إكمال الجدول الآتي بما في ذلك بيانات السنوات الخمس السابقة وتوقعات البيانات للسنوات الخمس القادمة للأنشطة التمويلية المطلوب الترخيص بممارستها.
D10: البيانات التاريخية | J10: البيانات المستقبلية
C11: ريال سعودي | D11: 2008 | E11: 2009 | F11: 2010 | G11: 2011 | H11: 2012 | I11: المعدل المركب للنمو السنوي % | J11: 2013 | K11: 2014 | L11: 2015 | M11: 2016 | N11: 2017 | O11: المعدل المركب للنمو السنوي %
C13: الدخل من الأنشطة التمويلية بشكل عام
C14: لنشاط التمويل العقاري
C15: لنشاط الإيجار التمويلي
C16: صافي دخل التمويل
C18: رسوم وعمولات، صافي
C19: لنشاط التمويل العقاري
C20: لنشاط الإيجار التمويلي
C21: إيرادات أخرى
C22: أضف بند آخر
C23: إجمالي الدخل التشغيلي
C25: يطرح:
C26: تكاليف التمويل
C27: صافي الدخل التشغيلي
C28: رواتب الموظفين وما في حكمها
C29: الإيجار ومصاريف المباني
C30: مصاريف عمومية وإدارية أخرى
C31: مخصص انخفاض قيمة التمويل
C32: استهلاك وإطفاء
C33: ضريبة الدخل
C34: الزكاة
C35: مصاريف أخرى، (مثل رسوم تأسيس شركة جديدة)
C36: أضف بند آخر
C38: صافي الدخل
C39: لنشاط التمويل العقاري
C40: لنشاط الإيجار التمويلي

Sheet 3.6 Ratios and assumptions
C7: المعدلات والفرضيات
C9: يجب إكمال الجدول الآتي بما في ذلك بيانات السنوات الخمس السابقة وتوقعات البيانات للسنوات الخمس القادمة في حال طلب البنك الترخيص بممارسة نشاط التمويل العقاري.
D10: البيانات التاريخية | J10: البيانات المستقبلية
C11: التمويل العقاري فقط | D11: 2008 | E11: 2009 | F11: 2010 | G11: 2011 | H11: 2012 | I11: المعدل المركب للنمو السنوي % | J11: 2013 | K11: 2014 | L11: 2015 | M11: 2016 | N11: 2017 | O11: المعدل المركب للنمو السنوي %
C12: نسب الربحية
C14: هامش الربح الإجمالي
C15: هامش صافي الربح
C17: نسب التكاليف
C19: نسبة التمويلات المتعثرة من إجمالي التمويل (%)
C21: النسب المالية
C23: متوسط نسبة مبلغ التمويل إلى قيمة الأصول الممولة (التمويل العقاري).
C27: يجب إكمال الجدول الآتي بما في ذلك بيانات السنوات الخمس السابقة وتوقعات البيانات للسنوات الخمس القادمة في حال طلب البنك الترخيص بممارسة نشاط الإيجار التمويلي.
D28: البيانات التاريخية | J28: البيانات المستقبلية
C29: الإيجار التمويلي فقط | D29: 2008 | E29: 2009 | F29: 2010 | G29: 2011 | H29: 2012 | I29: المعدل المركب للنمو السنوي % | J29: 2013 | K29: 2014 | L29: 2015 | M29: 2016 | N29: 2017 | O29: المعدل المركب للنمو السنوي %
C30: نسب الربحية
C32: هامش الربح الإجمالي
C33: الإيجار التمويلي للسيارات
C34: الإيجار التمويلي للمعدات
C35: الإيجار التمويلي للأصول الأخرى (باستثناء الإيجار التمويلي للعقار والذي يعتبر ضمن نشاط التمويل العقاري)
C36: هامش صافي الربح
C37: الإيجار التمويلي للسيارات
C38: الإيجار التمويلي للمعدات
C39: الإيجار التمويلي للأصول الأخرى (باستثناء الإيجار التمويلي للعقار والذي يعتبر ضمن نشاط التمويل العقاري)
C41: نسب التكاليف
C43: نسبة التمويلات المتعثرة من إجمالي التمويل (%)
C44: الإيجار التمويلي للسيارات
C45: الإيجار التمويلي للمعدات
C46: الإيجار التمويلي للأصول الأخرى (باستثناء الإيجار التمويلي للعقار والذي يعتبر ضمن نشاط التمويل العقاري)
D49: البيانات التاريخية | J49: البيانات المستقبلية
D50: 2008 | E50: 2009 | F50: 2010 | G50: 2011 | H50: 2012 | I50: المعدل المركب للنمو السنوي % | J50: 2013 | K50: 2014 | L50: 2015 | M50: 2016 | N50: 2017 | O50: المعدل المركب للنمو السنوي %
C51: عدد العملاء حسب النشاط التمويلي
C52: نشاط التمويل العقاري
C53: نشاط الإيجار التمويلي

Sheet Ratio definitions
C9: تعاريف المعدلات
D10: التعريفات
C11: نسب الربحية
C13: هامش الربح الإجمالي | D13: هامش الربح الإجمالي = إجمالي الربح ÷ الإيرادات
C14: هامش صافي الربح | D14: هامش صافي الربح = صافي الدخل ÷ الإيرادات
C17: نسب التكاليف
C19: نسبة التمويلات المتعثرة من إجمالي التمويل (%) | D19: نسبة التمويلات المتعثرة من إجمالي التمويل (%) = مجموع قيمة التمويلات المتعثرة ÷ مجموع التمويل الممنوح
C20: نشاط التمويل العقاري | D20: نسبة التمويلات المتعثرة لنشاط التمويل العقاري= مجموع قيمة التمويلات المتعثرة في نشاط التمويل العقاري ÷ مجموع التمويل الممنوح في نشاط التمويل العقاري
C21: نشاط الايجار التمويلي | D21: نسبة التمويلات المتعثرة لنشاط الإيجار التمويلي= مجموع قيمة التمويلات المتعثرة في نشاط الإيجار التمويلي ÷ مجموع التمويل الممنوح في نشاط الإيجار التمويلي
C24: النسب المالية
C26: متوسط نسبة مبلغ التمويل إلى قيمة الأصول الممولة | D26: متوسط نسبة مبلغ التمويل إلى قيمة الأصول الممولة = إجمالي مبالغ التمويل الممنوح ÷ إجمالي قيمة الأصول الممولة

Sheet 3.7 Execution-Operations Plan
C9: خطة التشغيل
C11: يجب أن يحتوي هذا القسم على بيانات تفصيلية عن إدارة المخاطر للأنشطة التمويلية المطلوب الترخيص بممارستها.
A12: FALSE | C12: إدارة المخاطر | Q12: TRUE
C14: وضح أساليب إدارة المخاطر والأدوات والإجراءات المستخدمة التي يستخدمها البنك في إدارة كل نوع من المخاطر الآتية:
C15: مخاطر الائتمان
C17: مخاطر السوق
C19: مخاطر أسعار كلفة الأجل
C21: مخاطر عدم توافق الأصول مع الخصوم
C23: مخاطر أسعار صرف العملات
C25: مخاطر السيولة
C27: مخاطر التشغيل
C29: مخاطر الدولة
C31: المخاطر القانونية
C33: مخاطر التقنية
C35: اذكر التفاصيل المتعلقة بالتأمين على أي من أنواع المخاطر المشار إليها أعلاه أو أي مخاطر أخرى
C39: يجب أن يحتوي هذا القسم على بيانات تفصيلية عن التسويق والمبيعات للأنشطة التمويلية المطلوب الترخيص بممارستها.
D40: التسويق والمبيعات
C42: المصادر الرئيسية للوصول للعملاء
C44: وصف وسائل وقنوات التسويق الأساسية
C46: ميزانية التسويق للسنة الأولى بالريال السعودي
C48: يجب ارفاق خطة تسويقية مفصلة مع نموذج طلب الترخيص.
C53: يجب أن يحتوي هذا القسم على بيانات تفصيلية عن أمن المعلومات للأنشطة التمويلية المطلوب الترخيص بممارستها.
D54: تقنية المعلومات
C55: حدد النظم الأساسية المستخدمه حالياً أو التي سوف تستخدم في المستقبل:
F56: النظام
A58: FALSE
A60: FALSE
A62: FALSE
A64: FALSE
A66: FALSE
A68: FALSE
A70: FALSE
C72: أذكر أي نظم أساسية أخرى مستخدمة حالياً أو سوف تستخدم في المستقبل
C77: خطة التحصيل
C79: نشاط التمويل | F79: تحصيل بواسطة البنك أو مقدم خدمات
A81: 2 | C81: التمويل العقاري
A83: 2 | C83: الإيجار التمويلي
C86: الجدول الزمني لعمليات التحصيل: اذكر الإجراءات المتبعة في التعامل مع حالات التخلف عن السداد وفقاً لمدة التخلف عن السداد: (1-30) يوم، و(31-90) يوم، وأكثر من (90) يوم.
C88: اسم مقدم خدمات التحصيل الخارجي (إن وجد)
C93: يجب أن يحتوي هذا القسم على بيانات تفصيلية عن العمليات الداخلية للأنشطة التمويلية المطلوب الترخيص بممارستها.
D94: العمليات الداخلية
F96: عمليات الائتمان | H96: إدارة ائتمان | J96: خدمة العملاء | L96: التحصيل | N96: إدارة محفظة الائتمان
C98: العمليات التي يقوم بها البنك حالياً
C100: العمليات التي يوجد لها سياسات وإجراءات عمل تفصيلية
C102: عدد الأشخاص الذين ينوي البنك تعيينهم خلال السنوات الخمس القادمة
C107: الجدول الزمني
C109: حدد المواعيد المتوقعة لبدء ممارسة الأنشطة التمويلية المطلوب الترخيص بممارستها
C111: التمويل العقاري | I111: الايجار التمويلي
C115: يجب أن يحتوي هذا القسم على بيانات تفصيلية عن اللجنة الشرعية للأنشطة التمويلية المطلوب الترخيص بممارستها.
D116: اللجنة الشرعية
C118: أسماء أعضاء اللجنة الشرعية
C120: رئيس اللجنة الشرعية
C122: دور ومسؤوليات اللجنة الشرعية
C124: خطة مراجعة اللجنة الشرعية أعمال التمويل العقاري أو الايجار التمويلي في البنك
C126: الجدول الزمني لمراجعة اللجنة الشرعية منتجات التمويل العقاري او الإيجار التمويلي التي يقدمها البنك
C130: يجب أن يحتوي طلب الترخيص على المرفقات الآتية المتعلقة بالأنشطة التمويلية المطلوب الترخيص بممارستها.
D131: مرفقات آخرى
D133: تقرير يوضح جميع عمليات البيع والشراء للمحافظ التمويلية مع المؤسسات المالية أو أي أطراف أخرى المنفذة خلال السنوات الخمس السابقة ( بما في ذلك نوع النشاط التمويلي، أطراف التعامل، تاريخ العملية، حجم العملية، سعر البيع أو الشراء، التصنيف الائتماني).
D135: تقرير يوضح تفاصيل جميع عمليات التمويل الممنوح لشركات التمويل والتقسيط خلال السنوات الخمس السابقة.

Sheet 3.8 Human Resources Plan
C6: خطة الموارد البشرية
C7: الرجاء تعبئة خطة الموارد البشرية للخمس سنوات القادمة عند طلب البنك التقدم لتمويل العقاري فقط
C8: خطة الموارد البشرية
C9: التمويل العقاري | D9: 2013 | F9: 2014 | H9: 2015 | J9: 2016 | L9: 2017 | N9: المعدل المركب للنمو السنوي (%)
D10: عدد الموظفين | E10: السعودة ( % ) | F10: عدد الموظفين | G10: السعودة ( % ) | H10: عدد الموظفين | I10: السعودة ( % ) | J10: عدد الموظفين | K10: السعودة ( % ) | L10: عدد الموظفين | M10: السعودة ( % ) | N10: عدد الموظفين | O10: السعودة ( % )
C11: الإجمالي
C12: توزيع الموظفين حسب الإدارة
C13: المبيعات و التسويق
C14: إدارة المخاطر (إن وجدت)
C17: الرجاء تعبئة خطة الموارد البشرية للخمس سنوات القادمة عند طلب البنك التقدم الإيجار التمويلي فقط
C18: خطة الموارد البشرية
C19: الإيجار التمويلي | D19: 2013 | F19: 2014 | H19: 2015 | J19: 2016 | L19: 2017 | N19: المعدل المركب للنمو السنوي (%)
D20: عدد الموظفين | E20: السعودة ( % ) | F20: عدد الموظفين | G20: السعودة ( % ) | H20: عدد الموظفين | I20: السعودة ( % ) | J20: عدد الموظفين | K20: السعودة ( % ) | L20: عدد الموظفين | M20: السعودة ( % ) | N20: عدد الموظفين | O20: السعودة ( % )
C21: الإجمالي
C22: توزيع الموظفين حسب الإدارة
C23: المبيعات و التسويق
C24: إدارة المخاطر (إن وجدت)
C32: يجب أن يحتوي هذا القسم على بيانات تفصيلية عن البرامج التدريبية فيما يتعلق بالأنشطة التي قدم البنك الطلب بممارستها: التمويل العقاري أو الإيجار التمويلي
C33: برامج التدريب
C35: متوسط عدد أيام التدريب لكل موظف سنوياً
C37: الميزانية المخصصة للتدريب للسنة الأولى بالريال السعودي
C39: البرامج التدريبية الفنية
C41: اسم البرنامج التدريبي | E41: العدد المستهدف مشاركته في البرنامج التدريبي من الموظفين، حسب الإدارة والمستوى الإداري
C63: البرامج التدريبية الأخرى
C65: اسم البرنامج التدريبي | E65: العدد المستهدف مشاركته في البرنامج التدريبي من الموظفين، حسب الإدارة والمستوى الإداري

Sheet 4. Acknowledgement
C6: إقرار وتعهد
C7: يجب توقيع هذا الإقرار والتعهد من مسئول يمثل البنك تمثيلاً رسمياً.
C9: أُقرّ بموجب هذا أنني قرأت نظام مراقبة شركات التمويل، ونظام الإيجار التمويلي، ونظام التمويل العقاري ولوائحها التنفيذية والأنظمة واللوائح ذات العلاقة في المملكة العربية السعودية، وأعلم أن تقديم أي معلومات غير صحيحة أو مضللة أو غير دقيقة أو غير مكتملة للمؤسسة أو لأي جهة أو لأي شخص طبيعي أو اعتباري حول ممارسة الأعمال التجارية في المملكة، سواءً كان ذلك عن علم أو لعدم المبالاة أو التقصير، يعتبر مخالفة تستوجب العقوبة بموجب نظام مراقبة شركات التمويل والأنظمة المرعية الأخرى.
C19: وأؤكد أن البنك على علم ودراية بالمعلومات والبيانات المقدمة في طلب الترخيص وأن المستندات والمعلومات والبيانات المقدمة في هذا الطلب وتلك التي قدمت أو سوف تقدم مكملةً له هي مستندات ومعلومات وبيانات مكتملة وصحيحة ودقيقة ولا يوجد أي معلومات جوهرية أخرى لم يفصح عنها في طلب الترخيص. وأؤكد أيضاً أن المستندات والمعلومات والبيانات المقدمة في صيغة إلكترونية متطابقة مع المستندات والمعلومات والبيانات المقدمة في النسخ الورقية لمستندات ونماذج طلب الترخيص ومتوافقة معها، بما في ذلك توافق المعلومات المقدمة في قسم "معلومات عن خطة العمل" من نموذج طلب الترخيص مع مكونات خطة العمل المقدمة.
C28: وأؤكد أن البنك سوف يقوم بتزويد المؤسسة فوراً بأي معلومات أو مستندات تراها ضرورية لأغراض دراسة طلب الترخيص.
C29: وأؤكد أن البنك على علم أن المؤسسة قد تقوم برفض طلب الترخيص أو إلغاء الترخيص ولا سيما إذا تبين أن البنك زود المؤسسة بمعلومات زائفة أو أغفل الإفصاح عن معلومات جوهرية كان عليه الإفصاح عنها لأغراض الترخيص.
C34: كما أقر أن البنك سوف يقوم بإخطار المؤسسة بأية معلومات أو تغيُرات هامة من شأنها أن تؤثر على دقة واكتمال المعلومات والنماذج والمستندات المقدمة ضمن طلب الترخيص وذلك خلال مدة أقصاها (30) يوم عمل من حصول البنك على تلك المعلومات أو من حدوث التغيّر، وفي حالة مخالفة البنك لذلك سوف يكون عرضة لأي عقوبة تقررها الأنظمة المرعية.
C39: الاسم:
C40: التوقيع:
C41: المنصب:
C42: التاريخ:
E43: ختم البنك

Sheet 5. Attachments
B7: بيان المرفقات
B10: يجب إكمال الجدول الآتي بحيث يشمل جميع النماذج والمستندات المرافقة لنموذج طلب الترخيص. ويمكن طباعة أكثر من نسخة من هذا الجدول في حال الحاجة لمساحة إضافية.
A12: رقم المرفق | B12: اسم النموذج | C12: عدد صفحات المرفق
A13: 1
A14: =A13+1 -> 2
A15: =A14+1 -> 3
A16: 4
A17: 5
A18: 6
A19: 7
A20: 8
A21: 9
A22: 10
A23: 11
A24: 12
A25: 13
A26: 14
A27: 15
A28: 16
A29: 17
A30: 18
A31: 19
A32: 20
A33: 21
A34: 22
A35: 23
A36: 24
A37: 25
A38: 26
A39: 27
A40: 28
A41: 29
A42: 30
A43: 31
A44: 32
A45: 33
A46: 34
A47: 35
A48: 36
A49: 37
A50: 38
A51: 39
A52: 40
A53: 41
A54: 42
A55: 43
A56: 44
A57: 45
A58: 46
A59: 47
A60: 48
A61: 49
A62: 50
A63: 51
A64: 52
A65: 53
A66: 54
A67: 55
A68: 56
A69: 57
A70: 58
A71: 59
A72: 60
A73: 61
A74: 62
A75: 63
A76: 64
A77: 65
A78: 66
A79: =A78+1 -> 67
A80: 68
A81: 69
A82: 70
A83: 71
A84: 72
A85: 73
A86: 74
A87: 75
A88: 76
A89: 77
A90: 78
A91: 79
A92: 80
A93: 81
A94: 82
A95: 83
A96: 84
A97: 85
A98: 86
A99: 87
A100: 88
A101: 89
A102: 90
A103: 91
A104: 92
A105: 93
A106: 94
A107: 95
A108: 96
A109: 97
A110: 98
A111: 99
A112: 100
B114: نهاية نموذج طلب الترخيص
